bitfinex-derivatives/quotes_BNBF0:USTF0_20250326
["timestamp","ask_amount","ask_price","bid_price","bid_amount"]
[1743002131131,1.22186088,626.58,625.1,0.3199488]
[1743002131326,2.12984907,626.57,625.1,0.3199488]
[1743002131528,1.22186088,626.56,625.1,0.3199488]
[1743002131730,1.22186088,626.55,625.1,0.3199488]
[1743002131925,1.22186088,626.54,625.07,0.31996416]
[1743002132125,1.22186088,626.53,625.07,0.31996416]
[1743002132330,1.22186088,626.52,625.07,0.31996416]
[1743002132625,1.22186088,626.51,625.07,0.31996416]
[1743002132831,1.22186088,626.5,625.07,0.31996416]
[1743002133032,1.22186088,626.49,625.07,0.31996416]
[1743002133232,1.22186088,626.48,625.07,0.31996416]
[1743002133431,1.22186088,626.47,625.07,0.31996416]
[1743002133629,1.22186088,626.46,625.08,0.26002239]
[1743002133832,1.22186088,626.45,625.09,0.25997626]
[1743002134032,1.22186088,626.44,625.1,0.25997626]
[1743002134231,1.22186088,626.43,625.08,0.25997626]
[1743002134533,1.22186088,626.42,625.09,0.25997626]
[1743002134835,1.22186088,626.41,625.1,0.25997626]
[1743002135026,1.22186088,626.4,624.79,0.25997626]
[1743002135231,1.22186088,626.4,624.78,1.18759361]
[1743002135232,1.22186088,626.39,624.8,0.25997626]
[1743002135433,2.12984907,626.38,624.81,0.25997626]
[1743002135633,1.22186088,626.37,624.96,1.18759361]
[1743002135833,1.22186088,626.36,624.97,0.25997626]
[1743002136033,1.22186088,626.35,624.97,0.25997626]
[1743002136234,1.22186088,626.34,624.97,0.25997626]
[1743002136535,2.12423628,626.33,624.97,0.25997626]
[1743002136742,1.2178032,626.32,624.97,0.25997626]
[1743002168558,1.21959261,625.98,625.32,1.18843094]
[1743002168760,1.21959261,625.97,625.32,1.18843094]
[1743002168953,1.21959261,626.01,625.33,0.2598243]
[1743002169257,1.143,626.02,625.33,0.2598243]
[1743002169455,2.36259261,626.02,625.33,0.2598243]
[1743002169655,1.143,626.02,625.32,1.18843094]
[1743002205082,0.505,625.73,625.33,0.31983112]
[1743002209284,1.323,625.72,625.33,0.31983112]
[1743002211289,1.439,625.71,625.33,0.31983112]
[1743002212986,2.937,625.7,625.33,0.31983112]
[1743002215892,4.189,625.7,625.33,0.31983112]
[1743002216994,1.22574487,625.69,625.1,1.18752697]
[1743002217188,1.22574487,625.68,625.1,1.18752697]
[1743002217387,1.22574487,625.67,625.1,1.18752697]
[1743002217593,1.22574487,625.66,625.1,1.18752697]
[1743002217793,1.22574487,625.65,625.1,1.18752697]
[1743002217994,1.22574487,625.64,625.1,1.18752697]
[1743002218194,1.22574487,625.63,625.1,1.18752697]
[1743002218397,1.22574487,625.62,625.03,1.18752697]
[1743002218589,1.22574487,625.61,625.03,1.18752697]
[1743002218788,1.22574487,625.6,625.03,1.18752697]
[1743002218990,1.22574487,625.59,625.03,1.18752697]
[1743002219190,1.22574487,625.58,625.03,1.18752697]
[1743002219394,0.91254532,625.57,625.03,1.18752697]
[1743002220190,4.189,625.7,625.03,1.18752697]
[1743002220390,1.22569154,625.69,625.03,1.18752697]
[1743002220694,1.22569154,625.68,625.03,1.18752697]
[1743002220895,2.13803307,625.67,625.01,1.18752697]
[1743002221095,1.22569154,625.66,625.01,1.18752697]
[1743002221295,0.91234153,625.67,625.01,1.18752697]
[1743002221491,0.91234153,625.65,625.01,1.18752697]
[1743002222191,4.189,625.7,625.01,1.18752697]
[1743002222391,1.22552453,625.69,625.01,1.18752697]
[1743002222591,2.13779905,625.68,624.98,1.18752697]
[1743002222793,0.91227452,625.68,624.98,1.18752697]
[1743002223191,0.91227452,625.67,624.98,1.18752697]
[1743002223398,2.67627452,625.67,624.98,1.18752697]
[1743002223591,0.91227452,625.66,624.98,1.18752697]
[1743002224392,1.764,625.67,624.98,1.18752697]
[1743002227699,1.764,625.67,625.19,1.18752697]
[1743002229700,1.764,625.67,625.28,1.18752697]
[1743002232196,1.764,625.67,625.18,1.18752697]
[1743002232601,0.505,625.66,625.18,1.18752697]
[1743002232803,1.22550962,625.65,625.18,1.18752697]
[1743002233101,0.505,625.66,625.18,1.18752697]
[1743002233302,1.22554651,625.65,625.18,1.18752697]
[1743002233505,1.22554651,625.64,625.18,1.18752697]
[1743002233704,1.794,625.64,625.18,1.18752697]
[1743002234105,1.794,625.64,625.17,1.18752697]
[1743002234307,1.72,625.63,625.17,1.18752697]
[1743002235208,0.91250308,625.62,625.17,1.18752697]
[1743002235705,0.91250308,625.61,625.17,1.18752697]
[1743002235905,2.13845998,625.6,625.17,1.18752697]
[1743002236107,1.2259569,625.59,625.17,1.18752697]
[1743002236405,2.13845998,625.58,625.17,1.18752697]
[1743002236605,2.13845998,625.58,625.05,1.18752697]
[1743002236606,1.2259569,625.57,625.05,1.18752697]
[1743002236800,1.2259569,625.56,625.06,0.31996928]
[1743002237003,1.22592478,625.55,625.06,0.31996928]
[1743002237205,1.72,625.63,625.06,0.31996928]
[1743002237402,1.22578897,625.62,625.06,0.31996928]
[1743002237606,1.22578897,625.61,625.06,0.31996928]
[1743002237799,1.22578897,625.6,625.06,0.31996928]
[1743002238004,1.22578897,625.59,625.06,0.31996928]
[1743002238207,1.22578897,625.58,625.06,0.31996928]
[1743002238408,1.22578897,625.57,625.06,0.31996928]
[1743002238703,1.22578897,625.56,625.06,0.31996928]
[1743002239007,1.22578897,625.55,625.06,0.31996928]
[1743002239206,1.22578897,625.54,625.06,0.31996928]
[1743002239404,2.13838519,625.53,625.06,0.31996928]
[1743002239607,1.22578897,625.52,625.06,0.31996928]
[1743002239808,0.91259622,625.53,625.09,1.18752697]
[1743002240005,1.22532051,625.52,625.09,1.18752697]
[1743002240207,1.22532051,625.51,625.09,1.18752697]
[1743002240410,1.22532051,625.5,625.09,1.18752697]
[1743002240611,0.91259622,625.5,625.09,1.18752697]
[1743002241004,1.424,625.54,625.09,1.18752697]
[1743002241210,1.2250646,625.53,625.09,1.18752697]
[1743002241405,1.2250646,625.52,625.09,1.18752697]
[1743002241710,2.13706452,625.51,625.09,1.18752697]
[1743002241910,2.13706452,625.5,625.09,1.18752697]
[1743002242110,1.707,625.5,625.09,1.18752697]
[1743002242304,1.22491277,625.49,625.09,1.18752697]
[1743002242509,1.707,625.5,625.09,1.18752697]
[1743002242913,1.707,625.5,625.06,0.31996928]
[1743002250721,1.707,625.5,625.07,1.18752697]
[1743002251115,1.707,625.5,625.08,0.31995904]
[1743002251519,0.505,625.49,625.08,0.31995904]
[1743002252920,0.505,625.49,625.28,1.18752697]
[1743002255625,0.505,625.49,625.2,1.18752697]
[1743002256623,0.505,625.49,625.21,0.26035882]
[1743002256923,0.505,625.49,625.22,0.26036689]
[1743002257124,0.505,625.49,625.23,0.26036689]
[1743002322285,1.2289459,625.66,625.55,1.1928519]
[1743002322485,1.2289459,625.65,625.48,1.1928519]
[1743002322685,2.14376848,625.64,625.48,1.1928519]
[1743002322889,1.2289459,625.63,625.48,1.1928519]
[1743002323081,0.91482258,625.64,625.48,1.1928519]
[1743002323286,1.22886161,625.63,625.48,1.1928519]
[1743002323486,2.018,625.7,625.48,1.1928519]
[1743002323686,1.22874397,625.69,625.48,1.1928519]
[1743002323883,1.22874397,625.68,625.48,1.1928519]
[1743002324188,1.22874164,625.67,625.48,1.1928519]
[1743002324384,1.22874164,625.66,625.48,1.1928519]
[1743002324585,0.9146601,625.67,625.48,1.1928519]
[1743002324783,2.018,625.7,625.48,1.1928519]
[1743002324987,1.22860222,625.69,625.48,1.1928519]
[1743002325185,1.22860222,625.68,625.48,1.1928519]
[1743002325491,2.018,625.7,625.48,1.1928519]
[1743002325691,2.14313145,625.69,625.48,1.1928519]
[1743002325990,1.22860028,625.68,625.48,1.1928519]
[1743002326190,2.018,625.7,625.47,1.1928519]
[1743002326390,1.22861213,625.69,625.47,1.1928519]
[1743002326591,2.018,625.7,625.47,1.1928519]
[1743002326785,1.22860825,625.69,625.47,1.1928519]
[1743002326986,1.22860827,625.68,625.47,1.1928519]
[1743002327188,2.018,625.7,625.47,1.1928519]
[1743002327392,2.14316822,625.69,625.47,1.1928519]
[1743002327589,1.22862112,625.68,625.47,1.1928519]
[1743002327789,2.018,625.7,625.41,1.1928519]
[1743002327986,1.2286195,625.69,625.41,1.1928519]
[1743002328191,1.2286195,625.68,625.41,1.1928519]
[1743002328391,3.737,625.7,625.41,1.1928519]
[1743002328587,1.22863244,625.69,625.41,1.1928519]
[1743002328792,1.22863244,625.68,625.41,1.1928519]
[1743002328992,4.974,625.7,625.41,1.1928519]
[1743002329292,1.2286328,625.69,625.41,1.1928519]
[1743002329492,6.538,625.7,625.41,1.1928519]
[1743002329689,1.2286449,625.69,625.41,1.1928519]
[1743002329890,6.538,625.7,625.41,1.1928519]
[1743002330089,1.22864403,625.69,625.41,1.1928519]
[1743002330290,1.22866793,625.68,625.43,1.1928519]
[1743002330490,5.025,625.7,625.43,1.1928519]
[1743002330792,3.00167364,625.69,625.43,1.1928519]
[1743002330988,1.22867364,625.68,625.43,1.1928519]
[1743002331193,2.68758536,625.69,625.43,1.1928519]
[1743002331393,1.22868794,625.68,625.43,1.1928519]
[1743002331595,1.773,625.69,625.43,1.1928519]
[1743002331795,1.2286886,625.68,625.43,1.1928519]
[1743002332095,1.773,625.69,625.43,1.1928519]
[1743002332393,2.14331244,625.68,625.43,1.1928519]
[1743002332587,1.22869484,625.67,625.43,1.1928519]
[1743002332791,0.9146176,625.68,625.43,1.1928519]
[1743002333188,1.773,625.69,625.43,1.1928519]
[1743002333388,1.22870447,625.68,625.43,1.1928519]
[1743002333590,1.22871785,625.67,625.43,1.1928519]
[1743002333790,3.523,625.69,625.43,1.1928519]
[1743002333995,0.91462255,625.67,625.43,1.1928519]
[1743002334495,3.523,625.69,625.43,1.1928519]
[1743002334794,1.22872235,625.68,625.43,1.1928519]
[1743002334996,3.523,625.69,625.43,1.1928519]
[1743002335197,1.22872322,625.68,625.43,1.1928519]
[1743002335495,3.523,625.69,625.43,1.1928519]
[1743002335694,1.22873674,625.68,625.43,1.1928519]
[1743002335898,3.523,625.69,625.43,1.1928519]
[1743002336195,1.22873674,625.68,625.43,1.1928519]
[1743002336395,3.523,625.69,625.43,1.1928519]
[1743002336596,1.22875446,625.68,625.43,1.1928519]
[1743002336789,1.22875446,625.67,625.51,1.1928519]
[1743002336988,3.523,625.69,625.51,1.1928519]
[1743002337193,1.22876406,625.68,625.51,1.1928519]
[1743002337392,3.523,625.69,625.51,1.1928519]
[1743002337696,1.22877804,625.68,625.51,1.1928519]
[1743002337897,3.523,625.69,625.51,1.1928519]
[1743002338093,1.22877531,625.68,625.51,1.1928519]
[1743002338297,3.523,625.69,625.51,1.1928519]
[1743002338498,1.22879056,625.68,625.51,1.1928519]
[1743002338698,3.523,625.69,625.51,1.1928519]
[1743002338993,1.22879273,625.68,625.51,1.1928519]
[1743002339197,3.523,625.69,625.51,1.1928519]
[1743002339198,1.22880698,625.67,625.51,1.1928519]
[1743002339399,1.2288169,625.66,625.51,1.1928519]
[1743002339596,3.523,625.69,625.51,1.1928519]
[1743002339797,1.22882866,625.68,625.51,1.1928519]
[1743002339993,1.22882866,625.67,625.51,1.1928519]
[1743002340300,3.523,625.69,625.51,1.1928519]
[1743002340498,1.22883232,625.68,625.51,1.1928519]
[1743002340700,1.22883232,625.67,625.51,1.1928519]
[1743002341000,2.14361095,625.66,625.51,1.1928519]
[1743002341301,1.22883232,625.65,625.51,1.1928519]
[1743002341493,1.22883232,625.64,625.51,1.1928519]
[1743002341697,3.523,625.69,625.51,1.1928519]
[1743002341894,1.22884823,625.68,625.51,1.1928519]
[1743002342094,1.22884823,625.67,625.48,1.1928519]
[1743002342293,1.22884823,625.66,625.48,1.1928519]
[1743002342497,1.22884823,625.65,625.48,1.1928519]
[1743002342697,1.22884823,625.64,625.48,1.1928519]
[1743002342898,0.9147238,625.66,625.48,1.1928519]
[1743002343098,1.22879911,625.65,625.48,1.1928519]
[1743002343301,1.22879911,625.64,625.48,1.1928519]
[1743002343504,3.523,625.69,625.48,1.1928519]
[1743002343705,1.22877006,625.68,625.48,1.1928519]
[1743002343905,1.22877006,625.67,625.48,1.1928519]
[1743002344100,1.22877006,625.66,625.43,1.1928519]
[1743002344300,1.22877006,625.65,625.43,1.1928519]
[1743002344506,0.91467574,625.65,625.43,1.1928519]
[1743002344806,3.523,625.69,625.43,1.1928519]
[1743002345007,1.2287433,625.68,625.43,1.1928519]
[1743002345199,1.2287433,625.67,625.43,1.1928519]
[1743002345406,1.2287433,625.66,625.43,1.1928519]
[1743002345604,1.2287433,625.65,625.43,1.1928519]
[1743002345807,1.22875188,625.64,625.41,1.1928519]
[1743002346000,0.91464874,625.66,625.41,1.1928519]
[1743002346206,1.22876047,625.65,625.41,1.1928519]
[1743002346500,1.22876047,625.64,625.41,1.1928519]
[1743002346704,0.91464874,625.65,625.41,1.1928519]
[1743002346903,1.22873431,625.64,625.41,1.1928519]
[1743002347105,1.22873431,625.63,625.41,1.1928519]
[1743002347303,1.672,625.67,625.41,1.1928519]
[1743002347501,2.14338318,625.66,625.41,1.1928519]
[1743002347704,1.228733,625.65,625.41,1.1928519]
[1743002347905,1.228733,625.64,625.39,1.1928519]
[1743002348102,1.228733,625.63,625.39,1.1928519]
[1743002348302,0.91465018,625.64,625.39,1.1928519]
[1743002348505,1.22875341,625.63,625.39,1.1928519]
[1743002348707,0.91465018,625.64,625.39,1.1928519]
[1743002348908,1.22875034,625.63,625.39,1.1928519]
[1743002349105,1.249,625.65,625.39,1.1928519]
[1743002349301,1.22879547,625.64,625.39,1.1928519]
[1743002349502,1.22879547,625.64,625.29,0.26059897]
[1743002349503,1.22879547,625.63,625.34,1.1928519]
[1743002349705,0.91467732,625.63,625.34,1.1928519]
[1743002350203,2.43082181,625.62,625.29,0.26059897]
[1743002350410,2.11667732,625.62,625.29,0.26059897]
[1743002350709,1.22878989,625.61,625.29,0.26059897]
[1743002350902,1.202,625.62,625.29,0.26059897]
[1743002351107,2.14356151,625.61,625.29,0.26059897]
[1743002351308,0.91473875,625.61,625.29,0.26059897]
[1743002351607,1.202,625.62,625.29,0.26059897]
[1743002352406,1.202,625.62,625.32,1.1918082]
[1743002354113,1.202,625.62,625.37,1.1918082]
[1743002356316,1.202,625.62,625.4,1.1918082]
[1743002360112,1.202,625.62,625.45,1.1918082]
[1743002362816,1.202,625.62,625.46,1.1918082]
[1743002364918,1.202,625.62,625.29,0.26059897]
[1743002367030,1.456,625.61,625.29,0.26059897]
[1743002367518,1.771,625.6,625.29,0.26059897]
[1743002368419,1.771,625.6,625.29,0.58045055]
[1743002368620,1.771,625.6,625.3,0.26014827]
[1743002369421,1.771,625.6,625.37,1.1918082]
[1743002370722,1.771,625.6,625.38,0.26001702]
[1743002371222,1.771,625.6,625.46,1.1918082]
[1743002373826,1.771,625.6,625.29,0.58045055]
[1743002373827,1.771,625.6,625.5,1.1918082]
[1743002376022,1.771,625.6,625.29,0.58045055]
[1743002376023,1.771,625.6,625.45,1.1918082]
[1743002377930,1.771,625.6,625.45,1.51157796]
[1743002378632,1.771,625.6,625.45,0.31976976]
[1743002385637,1.341,625.63,625.45,0.31976976]
[1743002388139,1.341,625.63,625.46,0.25981458]
[1743002388735,1.341,625.63,625.47,0.31975954]
[1743002388935,1.341,625.63,625.48,0.25981458]
[1743002389132,1.32989863,625.63,625.49,0.31974931]
[1743002389437,6.445,625.71,625.5,0.25981458]
[1743002389638,6.445,625.71,625.51,0.31973909]
[1743002392951,6.445,625.71,625.52,0.25899737]
[1743002393249,6.445,625.71,625.53,0.31972886]
[1743002393450,6.445,625.71,625.54,0.25899737]
[1743002393750,6.445,625.71,625.55,0.31971864]
[1743002393949,6.445,625.71,625.56,0.25899737]
[1743002394149,6.445,625.71,625.57,0.31970842]
[1743002394351,6.445,625.71,625.58,0.25899737]
[1743002394544,6.445,625.71,625.59,0.3196982]
[1743002395948,6.445,625.71,625.6,0.25903971]
[1743002397555,6.445,625.71,625.59,0.3196982]
[1743002403659,4.808,625.71,625.59,0.3196982]
[1743002404359,2.934,625.71,625.59,0.3196982]
[1743002404759,1.323,625.71,625.59,0.3196982]
[1743002412663,1.323,625.71,625.4,1.1918082]
[1743002414767,1.323,625.71,625.33,1.1918082]
[1743002415367,1.323,625.71,625.33,1.18758672]
[1743002415869,1.323,625.71,625.34,0.25921328]
[1743002416459,6.862,625.85,625.34,0.25921328]
[1743002416667,1.688,625.7,625.34,0.25921328]
[1743002417067,1.688,625.7,625.35,0.25921328]
[1743002417268,1.688,625.7,625.15,0.25921328]
[1743002417569,1.688,625.7,625.16,0.57913138]
[1743002417869,1.688,625.7,625.17,0.57912626]
[1743002418067,1.688,625.7,625.18,0.57912114]
[1743002418263,1.688,625.7,625.19,0.57911602]
[1743002418463,1.688,625.7,625.2,0.57911091]
[1743002418669,1.688,625.7,625.21,0.57910579]
[1743002418869,1.688,625.7,625.22,0.57910067]
[1743002419166,2.193,625.7,625.23,0.25921328]
[1743002419372,2.193,625.7,625.24,0.31987716]
[1743002419572,3.508,625.7,625.25,0.25921328]
[1743002420374,3.508,625.7,625.26,0.31986693]
[1743002420575,3.508,625.7,625.27,0.25921328]
[1743002421175,3.508,625.7,625.28,0.3198567]
[1743002421476,3.508,625.7,625.29,0.25921328]
[1743002421672,3.508,625.7,625.3,0.31984647]
[1743002421975,3.508,625.7,625.31,0.25921328]
[1743002422174,3.508,625.7,625.32,0.31983624]
[1743002422375,3.508,625.7,625.33,0.25921328]
[1743002422570,3.508,625.7,625.34,0.31982601]
[1743002422876,5.367,625.7,625.35,0.25921328]
[1743002423076,5.367,625.7,625.36,0.31981578]
[1743002423375,5.367,625.7,625.37,0.25921328]
[1743002423576,5.367,625.7,625.38,0.31980555]
[1743002423877,5.367,625.7,625.41,1.1918082]
[1743002424175,5.367,625.7,625.42,0.25921328]
[1743002427376,5.367,625.7,625.38,0.31980555]
[1743002427577,5.367,625.7,625.39,0.25927715]
[1743002429076,5.367,625.7,625.38,0.31980555]
[1743002429277,5.367,625.7,625.39,0.25920886]
[1743002430771,5.367,625.7,625.4,0.25925288]
[1743002430971,5.367,625.7,625.39,0.25925288]
[1743002431177,5.367,625.7,625.4,0.25925288]
[1743002431377,7.173,625.7,625.39,0.25925288]
[1743002432276,7.173,625.7,625.38,0.31980555]
[1743002432475,7.173,625.7,625.39,0.2592507]
[1743002433375,9.167,625.7,625.39,0.2592507]
[1743002435678,9.167,625.7,625.38,0.31980555]
[1743002435982,9.167,625.7,625.39,0.25923784]
[1743002438483,9.167,625.7,625.38,1.51161375]
[1743002438682,9.167,625.7,625.39,0.25929086]
[1743002438876,9.167,625.7,625.38,1.51161375]
[1743002439078,9.167,625.7,625.39,0.25926834]
[1743002439584,9.167,625.7,625.38,0.31980555]
[1743002444683,9.167,625.7,625.39,0.25937345]
[1743002444889,9.167,625.7,625.38,0.31980555]
[1743002449684,10.482,625.7,625.38,0.31980555]
[1743002451690,10.482,625.7,625.39,0.25961585]
[1743002453995,10.482,625.7,625.4,0.25964509]
[1743002454189,10.482,625.7,625.39,0.25964509]
[1743002454397,10.482,625.7,625.4,0.25964509]
[1743002454598,10.482,625.7,625.39,0.25964509]
[1743002454798,10.482,625.7,625.38,0.31980555]
[1743002454799,10.482,625.7,625.4,0.25964509]
[1743002454999,10.482,625.7,625.41,0.25964509]
[1743002455199,10.482,625.7,625.39,0.25964509]
[1743002455394,10.482,625.7,625.4,0.25964509]
[1743002455596,10.482,625.7,625.41,0.25962797]
[1743002455797,10.482,625.7,625.39,0.25962797]
[1743002456000,10.482,625.7,625.4,0.25962797]
[1743002456200,10.482,625.7,625.39,0.25962797]
[1743002457107,10.482,625.7,625.38,0.31980555]
[1743002457304,10.482,625.7,625.39,0.25964869]
[1743002458904,10.482,625.7,625.4,0.25965235]
[1743002459104,10.482,625.7,625.39,0.25965235]
[1743002459304,10.482,625.7,625.4,0.25965235]
[1743002459506,10.482,625.7,625.38,0.31980555]
[1743002461902,1.22667456,625.69,625.38,0.31980555]
[1743002462106,1.22667456,625.68,625.38,0.31980555]
[1743002462306,1.22667456,625.67,625.38,0.31980555]
[1743002462503,1.22667456,625.66,625.38,0.31980555]
[1743002462708,0.91297546,625.67,625.38,0.31980555]
[1743002463008,2.13944516,625.66,625.38,0.31980555]
[1743002463203,0.91297546,625.66,625.38,0.31980555]
[1743002463407,1.22632202,625.65,625.38,0.31980555]
[1743002463706,1.22632202,625.64,625.38,0.31980555]
[1743002463908,1.22634928,625.63,625.08,1.1918082]
[1743002464109,1.22634928,625.62,625.09,0.25992914]
[1743002464304,0.91294132,625.63,625.09,0.25992914]
[1743002464509,1.591,625.61,625.09,0.25992914]
[1743002464706,1.214,625.6,625.09,0.25992914]
[1743002464902,1.214,625.6,625.08,1.1918082]
[1743002465103,1.214,625.6,625.09,0.2599473]
[1743002465506,1.205,625.59,625.09,0.2599473]
[1743002465707,1.205,625.59,625.04,0.2599473]
[1743002465909,2.163,625.58,625.04,0.2599473]
[1743002467211,2.163,625.58,625.03,1.1918082]
[1743002467411,2.163,625.58,625.04,0.25992774]
[1743002467910,2.163,625.58,625.05,0.25992774]
[1743002468111,2.163,625.58,624.98,0.25992774]
[1743002468312,2.163,625.58,624.99,0.57993286]
[1743002468611,2.163,625.58,625.0,0.57992774]
[1743002468812,2.163,625.58,625.01,0.25992774]
[1743002469414,2.163,625.58,625.01,1.45173594]
[1743002469611,2.163,625.58,625.02,0.25992774]
[1743002469815,2.163,625.58,625.01,1.1918082]
[1743002470014,2.163,625.58,625.02,0.2599925]
[1743002470211,2.163,625.58,625.01,1.1918082]
[1743002470410,1.22440164,625.57,625.02,0.25997016]
[1743002470615,2.163,625.58,625.02,0.25997016]
[1743002470811,1.22440278,625.57,625.02,0.25997016]
[1743002471011,2.163,625.58,625.02,0.25997016]
[1743002471610,2.163,625.58,625.0,0.32]
[1743002471811,2.163,625.58,625.01,0.25987504]
[1743002472618,3.908,625.58,625.01,0.25987504]
[1743002473222,3.908,625.58,625.0,0.32]
[1743002473521,3.908,625.58,625.01,0.25989245]
[1743002475019,3.908,625.58,625.02,0.25988206]
[1743002475219,3.908,625.58,625.0,0.32]
[1743002475220,3.908,625.58,625.01,0.25988206]
[1743002476920,1.22224535,625.57,625.01,0.25988206]
[1743002477120,1.22224535,625.56,625.01,0.25988206]
[1743002477320,1.22224535,625.55,625.01,0.25988206]
[1743002477520,1.22224535,625.54,625.01,0.25988206]
[1743002477721,1.22224535,625.53,625.0,0.32]
[1743002477915,1.22224535,625.52,625.0,0.32]
[1743002478115,1.378,625.55,625.0,0.32]
[1743002478423,1.22171663,625.54,625.0,0.32]
[1743002478720,1.22171663,625.53,625.0,0.32]
[1743002478916,1.22171663,625.52,625.0,0.32]
[1743002479119,0.90926487,625.53,625.0,0.32]
[1743002479319,2.167,625.51,625.0,0.32]
[1743002481417,1.806,625.5,625.0,0.32]
[1743002481921,1.806,625.5,625.01,0.26007389]
[1743002483223,1.806,625.5,625.0,0.32]
[1743002483525,1.806,625.5,625.01,0.26019922]
[1743002485024,1.21958415,625.49,625.0,0.32]
[1743002485219,1.21958415,625.48,625.0,0.32]
[1743002485423,1.21958415,625.47,625.0,0.32]
[1743002485621,1.21958415,625.46,625.0,0.32]
[1743002485820,1.21958415,625.45,625.0,0.32]
[1743002486127,1.21958415,625.44,624.58,1.1918082]
[1743002486319,1.327,625.45,624.59,0.58048324]
[1743002486519,1.21882353,625.44,624.72,0.27835101]
[1743002486723,1.21882353,625.43,624.6,0.32020493]
[1743002486919,1.327,625.45,624.61,0.26039117]
[1743002487123,1.21881014,625.44,624.62,0.32019467]
[1743002487323,1.21842942,625.43,624.63,0.26039117]
[1743002487525,1.21844355,625.42,624.64,0.32018442]
[1743002487725,1.327,625.45,624.65,0.26039117]
[1743002488024,2.12558842,625.44,624.66,0.32017417]
[1743002488224,0.90714956,625.44,624.67,0.26039117]
[1743002488425,1.327,625.45,624.68,0.32016392]
[1743002488626,1.327,625.45,624.69,0.26039117]
[1743002489227,1.21780332,625.44,624.69,0.26039117]
[1743002489427,1.327,625.45,624.69,0.26039117]
[1743002490328,1.21756552,625.44,624.69,0.26039117]
[1743002490627,1.21756552,625.43,624.69,0.26039117]
[1743002490928,2.12439852,625.42,624.69,0.26039117]
[1743002491128,1.21756552,625.41,624.69,0.26039117]
[1743002491327,1.21756552,625.4,624.69,0.26039117]
[1743002491528,1.21756552,625.39,624.69,0.26039117]
[1743002491726,1.21756552,625.38,624.68,0.32016392]
[1743002491922,1.21750455,625.37,624.68,0.32016392]
[1743002492127,1.21750455,625.36,624.68,0.32016392]
[1743002492424,1.21750455,625.35,624.68,0.32016392]
[1743002492629,1.21750455,625.34,624.68,0.32016392]
[1743002492829,1.21750455,625.33,624.68,0.32016392]
[1743002493029,1.21750455,625.32,624.68,0.32016392]
[1743002493230,1.21750455,625.31,624.68,0.32016392]
[1743002493530,2.12433755,625.3,624.68,0.32016392]
[1743002493831,1.21683754,625.29,624.68,0.32016392]
[1743002494130,2.12367054,625.28,624.68,0.32016392]
[1743002494332,1.21683754,625.27,624.68,0.32016392]
[1743002494532,1.21683754,625.26,624.68,0.32016392]
[1743002494733,1.21683754,625.25,624.68,0.32016392]
[1743002495030,3.76467054,625.24,624.68,0.32016392]
[1743002495231,2.547833,625.24,624.68,0.32016392]
[1743002495627,0.505,625.23,624.68,0.32016392]
[1743002496130,1.21617837,625.22,624.68,0.32016392]
[1743002496332,0.505,625.23,624.68,0.32016392]
[1743002498225,1.243,625.22,624.68,0.32016392]
[1743002500632,1.334,625.21,624.69,0.26068967]
[1743002500827,1.334,625.21,624.7,0.32015367]
[1743002502635,1.315,625.2,624.7,0.32015367]
[1743002505430,1.315,625.2,624.71,0.26042576]
[1743002507037,1.315,625.2,624.72,0.26035406]
[1743002507232,1.315,625.2,624.71,0.26035406]
[1743002507536,1.315,625.2,624.72,0.26035406]
[1743002507736,1.315,625.2,624.71,0.26035406]
[1743002508438,2.986,625.2,624.71,0.26035406]
[1743002509838,2.986,625.2,624.72,0.26037828]
[1743002510032,2.986,625.2,624.71,0.26037828]
[1743002510338,2.986,625.2,624.72,0.26037828]
[1743002510538,2.986,625.2,624.7,0.32015367]
[1743002510539,2.986,625.2,624.71,0.26037828]
[1743002510738,2.986,625.2,624.7,0.32015367]
[1743002512439,4.48,625.2,624.7,0.32015367]
[1743002513442,5.803,625.2,624.7,0.32015367]
[1743002517242,5.803,625.2,624.71,0.26012591]
[1743002517447,6.307,625.2,624.72,0.32014342]
[1743002517646,6.307,625.2,624.73,0.26012591]
[1743002517842,6.307,625.2,624.74,0.32013317]
[1743002518147,6.307,625.2,624.75,0.26012591]
[1743002518448,6.307,625.2,624.76,0.32012292]
[1743002518947,7.753,625.2,624.77,0.26011299]
[1743002519247,7.753,625.2,624.78,0.32011267]